bitfinex/quotes_ETHUSD_20250620
["timestamp","ask_amount","ask_price","bid_price","bid_amount"]
[1750408727474,0.58374823,2564.3,2564.2,6.03261483]
[1750408727686,0.36485223,2564.3,2564.2,6.03261483]
[1750408728093,0.21893514,2564.4,2564.2,5.48251594]
[1750408728285,0.25800626,2564.5,2564.3,3.89969692]
[1750408728606,0.58383099,2564.4,2564.2,3.89977063]
[1750408728809,0.58407148,2564.3,2564.2,3.89977063]
[1750408729009,0.36504527,2564.3,2564.2,3.89977063]
[1750408729317,0.58407148,2564.3,2564.2,3.89977063]
[1750408729474,0.58407148,2564.3,2563.9,0.7532]
[1750408729681,0.58407148,2564.2,2564.1,3.89986171]
[1750408730010,0.36508203,2564.2,2564.1,3.9000039]
[1750408730511,0.3650841,2564.2,2564.1,3.9000039]
[1750408730739,0.5841346,2564.2,2564.1,3.9000039]
[1750408731032,0.36510061,2564.2,2564.1,3.9000039]
[1750408731196,0.36510061,2564.2,2564.1,5.30533403]
[1750408731519,0.58416097,2564.2,2564.1,6.10033403]
[1750408731731,0.36510061,2564.2,2564.1,6.10033403]
[1750408732044,10.0,2564.7,2564.6,3.89924354]
[1750408732201,10.58463605,2564.7,2564.6,3.64559067]
[1750408732416,10.58464023,2564.7,2564.5,3.89933227]
[1750408732717,0.36540171,2564.6,2564.5,3.89933227]
[1750408732925,0.58464364,2564.6,2564.5,3.89933227]
[1750408733147,0.58464559,2564.6,2564.5,3.89933227]
[1750408733310,0.58464646,2564.6,2564.5,3.89933227]
[1750408733494,0.58463504,2564.6,2564.4,3.89954174]
[1750408733839,10.0,2564.7,2564.5,3.89939559]
[1750408733988,0.5846581,2564.6,2564.5,3.89939559]
[1750408734388,0.58465464,2564.6,2564.5,3.89939559]
[1750408734588,0.58465532,2564.6,2564.5,3.89939559]
[1750408734990,0.58465532,2564.6,2564.5,3.95419559]
[1750408735288,10.0,2564.7,2564.6,3.89924354]
[1750408735489,10.0,2564.7,2564.1,0.795]
[1750408735490,0.7971,2564.6,2564.3,3.89968675]
[1750408735690,0.58486051,2564.5,2564.2,3.89976211]
[1750408735891,0.58486051,2564.4,2564.2,0.0548]
[1750408736187,0.58486051,2564.3,2564.2,3.95458956]
[1750408736587,6.482,2564.5,2564.3,3.89966841]
[1750408736837,0.62400262,2564.4,2564.0,4.50489722]
[1750408737041,0.5849315,2564.3,2564.0,3.90006999]
[1750408737210,0.58493611,2564.2,2564.0,3.90006999]
[1750408737410,0.58493611,2564.1,2564.0,3.90006999]
[1750408738113,0.58493611,2564.1,2563.8,0.0548]
[1750408738313,0.58493611,2564.1,2563.7,0.8137]
[1750408738314,0.58487342,2564.0,2563.9,3.90023824]
[1750408738841,0.58488545,2564.0,2563.9,3.90023824]
[1750408739398,6.481,2564.1,2563.9,3.90023824]
[1750408739605,0.58488521,2564.0,2563.9,3.90023824]
[1750408740031,0.21933195,2564.0,2563.9,3.90023824]
[1750408740233,0.58488543,2564.0,2563.9,3.90023824]
[1750408741252,0.36555348,2564.0,2563.9,3.90023824]
[1750408741551,0.58484647,2564.0,2563.9,3.90023824]
[1750408741920,8.198,2564.1,2564.0,3.900156]
[1750408742247,8.78278142,2564.1,2564.0,3.900156]
[1750408742419,8.7827756,2564.1,2564.0,3.900156]
[1750408742617,8.7827756,2564.1,2563.9,3.90022832]
[1750408742833,0.36544925,2564.0,2563.9,3.90022832]
[1750408743154,0.58471907,2564.0,2563.9,3.90022832]
[1750408743351,0.58471952,2564.0,2563.9,3.90022832]
[1750408745048,0.58471952,2564.0,2563.2,10.38222341]
[1750408745049,0.7505,2563.8,2563.3,0.7896]
[1750408745348,7.10388064,2563.7,2563.4,3.90102724]
[1750408745512,2.30180952,2563.6,2563.4,3.90102724]
[1750408745714,0.58437863,2563.5,2563.4,3.90102724]
[1750408746259,0.58437863,2563.5,2563.1,4.69110998]
[1750408746260,0.62344638,2563.5,2563.2,3.90130518]
[1750408746446,0.58437526,2563.4,2563.2,3.90130518]
[1750408746647,0.36507169,2563.3,2563.2,3.90130518]
[1750408747483,0.36507169,2563.3,2563.2,6.13075177]
[1750408747624,0.36507169,2563.3,2563.2,6.09173978]
[1750408747976,0.21902831,2563.7,2563.6,3.90065789]
[1750408748175,0.58406511,2563.7,2563.5,3.90083064]
[1750408748464,0.58406511,2563.7,2563.4,3.90099611]
[1750408748465,0.62313623,2563.6,2563.4,3.90099611]
[1750408748651,0.3650368,2563.5,2563.3,3.90114466]
[1750408748855,0.3650368,2563.4,2563.3,3.90114466]
[1750408749829,0.3650368,2563.4,2563.2,3.90130214]
[1750408749830,0.40410792,2563.4,2563.2,3.90130214]
[1750408750027,0.3650368,2563.3,2563.2,3.90130214]
[1750408750376,0.36478254,2563.3,2563.2,3.90130214]
[1750408750573,0.36478254,2563.3,2563.1,3.90144302]
[1750408750774,0.36474343,2563.2,2563.1,3.90144302]
[1750408750974,0.36474343,2563.2,2562.8,0.0548]
[1750408751149,0.36474343,2563.1,2563.0,3.90160038]
[1750408751674,0.21884606,2563.3,2563.1,3.90149768]
[1750408751832,0.36430178,2563.2,2563.1,3.90149768]
[1750408752835,0.58285169,2563.2,2563.1,3.90149768]
[1750408753036,0.21854755,2563.3,2563.2,3.90137328]
[1750408753245,0.58279324,2563.3,2563.1,3.90144583]
[1750408753473,0.21854746,2563.3,2563.2,3.90137328]
[1750408753776,0.58242068,2563.3,2563.1,3.90145504]
[1750408753941,1.17408471,2563.2,2563.0,3.90159236]
[1750408754137,0.36401359,2563.1,2563.0,3.90159236]
[1750408754341,1.717,2563.1,2563.0,3.90159236]
[1750408754651,2.29936267,2563.1,2563.0,3.90159236]
[1750408754974,2.33843379,2563.1,2562.9,3.90178332]
[1750408755274,0.36397469,2563.0,2562.9,3.90178332]
[1750408755473,0.3637744,2563.0,2562.7,3.90208777]
[1750408755673,0.40284552,2562.9,2562.7,3.90208777]
[1750408755835,0.3637744,2562.8,2562.7,3.90208777]
[1750408756041,0.3637744,2562.8,2562.3,0.7989]
[1750408756340,0.03907112,2563.0,2562.7,3.90212533]
[1750408756542,0.36380425,2562.9,2562.6,3.90223108]
[1750408756741,0.36380425,2562.8,2562.3,0.7989]
[1750408756974,0.36380436,2562.7,2562.6,3.90228674]
[1750408757273,0.25735413,2563.0,2562.7,3.90212097]
[1750408757481,0.36356427,2562.9,2562.8,3.9019822]
[1750408757639,1.717,2563.2,2562.9,3.90169093]
[1750408757840,0.58165296,2563.1,2562.9,3.90169093]
[1750408758054,0.36353787,2563.0,2562.9,3.90169093]
[1750408758853,0.36353787,2563.0,2562.7,3.90207662]
[1750408759052,0.40260899,2562.9,2562.8,3.9019822]
[1750408759251,0.40260899,2562.9,2562.4,0.8024]
[1750408759252,0.3635531,2562.9,2562.5,3.90243902]
[1750408759487,0.3635531,2562.9,2562.6,3.90220245]
[1750408759671,6.8415531,2562.9,2562.6,3.90220245]
[1750408759845,0.3635531,2562.8,2562.7,3.90213446]
[1750408760241,0.40262422,2562.8,2562.6,3.90216938]
[1750408760473,1.718,2562.7,2562.4,0.0549]
[1750408760779,1.718,2562.7,2561.7,16.478]
[1750408760780,0.82777112,2562.6,2562.3,3.9027404]
[1750408760997,4.78866523,2562.6,2562.1,3.95784211]
[1750408761286,4.78866523,2562.6,2562.1,3.90294211]
[1750408761493,6.478,2562.5,2561.8,0.8024]
[1750408761696,3.90274362,2562.3,2561.5,4.70626639]
[1750408761854,1.75707112,2562.2,2561.6,3.95858809]
[1750408762054,10.4553081,2561.9,2561.0,0.8024]
[1750408762296,3.94259644,2561.8,2561.3,3.90419631]
[1750408762591,8.196,2561.7,2561.3,3.90419631]
[1750408762776,0.03907112,2561.6,2561.2,3.90434375]
[1750408762979,0.03907112,2561.6,2561.4,3.90410585]
[1750408763179,0.03907112,2561.6,2561.3,3.90426203]
[1750408763357,0.40258152,2561.6,2561.4,3.90409154]
[1750408763795,0.40145554,2561.6,2561.2,3.95928335]
[1750408764162,0.40145554,2561.6,2561.4,3.90410162]
[1750408764358,0.8228,2561.5,2561.4,3.90410162]
[1750408764868,0.8228,2561.5,2561.2,3.9044198]
[1750408765068,0.8228,2561.5,2561.3,3.90414706]
[1750408765305,0.03907112,2561.6,2561.4,3.90411493]
[1750408765488,0.40105604,2561.6,2561.4,3.90411493]
[1750408765810,0.40104729,2561.6,2561.4,3.90411493]
[1750408766007,0.40104729,2561.6,2561.0,4.70706948]
[1750408766008,3.90404652,2561.5,2561.0,3.90465205]
[1750408766331,0.7568,2561.3,2560.8,4.69952939]
[1750408766609,8.55515869,2561.2,2561.1,3.90447566]
[1750408766779,8.55515869,2561.2,2560.8,0.7945]
[1750408766979,0.40126194,2561.1,2560.8,3.90493061]
[1750408767179,0.40126194,2561.1,2560.9,3.90484554]
[1750408767180,0.40126354,2561.1,2560.9,3.90484554]
[1750408767379,1.714,2561.2,2561.1,3.90454129]
[1750408767606,1.714,2561.2,2560.6,4.71738222]
[1750408767607,2.07618048,2561.2,2561.0,3.9046672]
[1750408767791,1.714,2561.2,2560.8,3.90502967]
[1750408768114,1.714,2561.2,2560.6,4.75646575]
[1750408768316,1.714,2561.2,2561.0,3.90460184]
[1750408768522,1.714,2561.2,2560.1,0.7786]
[1750408768523,1.11605242,2561.1,2560.1,0.7786]
[1750408768671,0.40116984,2561.0,2560.8,3.90501081]
[1750408769416,0.40116984,2561.0,2560.3,4.72879228]
[1750408769644,0.40116984,2561.0,2560.8,3.90492028]
[1750408769776,0.40115954,2561.0,2560.8,3.90492028]
[1750408770111,0.40115901,2561.0,2560.8,3.90492028]
[1750408770497,0.40115901,2561.0,2560.9,3.90487719]
[1750408770903,0.40115901,2561.0,2560.8,3.90492412]
[1750408771099,0.40115901,2561.0,2560.9,3.90487719]
[1750408771309,0.36208789,2561.0,2560.9,3.90487719]
[1750408772477,6.84308789,2561.0,2560.9,3.90487719]
[1750408772913,6.481,2561.0,2560.9,3.90487719]
[1750408773110,6.84322325,2561.0,2560.9,3.90487719]
[1750408773315,6.84323212,2561.0,2560.9,3.90487719]
[1750408773512,6.84323212,2561.0,2560.8,3.90494418]
[1750408773711,6.481,2561.0,2560.9,3.90487719]
[1750408774019,6.84323192,2561.0,2560.2,0.55]
[1750408774204,0.40130304,2560.9,2560.6,3.90525027]
[1750408774529,0.36225245,2560.9,2560.8,3.90502967]
[1750408775231,0.36225245,2560.9,2560.6,0.7659]
[1750408775232,0.36223813,2560.9,2560.6,0.7659]
[1750408775381,8.55723813,2561.0,2560.9,3.90487719]
[1750408775939,8.55723813,2561.0,2560.8,3.90495133]
[1750408776107,0.36223813,2560.9,2560.8,3.90495133]
[1750408776512,0.36226865,2561.0,2560.9,4.45487719]
[1750408776911,0.7629,2561.9,2561.8,3.90350534]
[1750408777094,7.06151621,2561.9,2561.8,3.90350534]
[1750408777303,17.06151438,2561.9,2561.8,3.90350534]
[1750408777552,1.715,2562.2,2562.1,3.90301782]
[1750408777847,1.715,2562.2,2562.1,3.90304828]
[1750408777848,0.36215238,2562.2,2562.1,3.90304828]
[1750408778046,10.61850114,2562.5,2562.0,3.90315118]
[1750408778342,0.57938826,2562.4,2562.0,3.90315118]
[1750408778503,0.36235684,2562.3,2562.1,3.90304828]
[1750408778846,15.51152571,2562.2,2561.3,0.7818]
[1750408778997,0.61909147,2562.1,2561.5,3.90395444]
[1750408779195,6.84951272,2562.0,2561.5,3.90395444]
[1750408779429,0.36251272,2561.9,2561.5,3.90395444]
[1750408780046,0.3625467,2561.9,2561.5,3.90395444]
[1750408780204,0.3625467,2562.0,2561.6,4.71490313]
[1750408780544,0.36253534,2561.9,2561.8,4.45350534]
[1750408780708,0.5234216,2563.0,2562.1,0.55]
[1750408780709,0.36253534,2562.4,2562.1,0.55]
[1750408780896,0.58000775,2562.7,2562.3,4.45263513]
[1750408781094,0.40151633,2562.6,2562.0,0.55]
[1750408781334,0.36244521,2562.5,2562.2,3.90278206]
[1750408781542,0.3626541,2562.4,2562.2,3.90278206]
[1750408781833,0.3626541,2562.5,2562.1,3.90298401]
[1750408782132,0.7679,2562.3,2561.9,3.90332721]
[1750408782337,0.36265965,2562.2,2561.9,3.90332721]
[1750408782499,0.36269364,2562.2,2561.9,3.90332721]
[1750408783035,0.36269364,2562.2,2562.0,3.90312492]
[1750408783219,8.61269364,2562.1,2562.0,3.90320062]
[1750408783536,0.36269364,2562.1,2562.0,3.90320062]
[1750408783722,0.36269364,2562.2,2562.1,5.25704828]
[1750408784035,0.58041097,2562.5,2562.3,3.90269839]
[1750408784238,0.36269364,2562.4,2562.3,3.90269839]
[1750408784397,0.36286433,2562.4,2562.3,3.90269839]
[1750408785094,0.36294364,2562.4,2562.2,3.90281105]
[1750408785331,0.21776751,2562.5,2562.2,3.90289594]
[1750408785534,0.36313606,2562.4,2562.2,3.90289594]
[1750408785829,0.21776751,2562.5,2562.2,3.90289594]
[1750408785830,0.36313606,2562.3,2562.2,3.90289594]
[1750408786555,0.36313606,2562.4,2562.2,3.90289594]
[1750408786760,0.36314141,2562.4,2562.2,3.90289594]
[1750408787230,0.36314244,2562.4,2562.1,3.90303079]
[1750408787432,0.36328665,2562.4,2562.3,3.90274362]
[1750408787635,0.36328665,2562.4,2562.2,3.90282056]
[1750408787803,0.36332388,2562.3,2562.2,3.90282056]
[1750408788348,0.58131838,2562.5,2562.1,3.90299643]
[1750408788646,0.402395,2562.4,2562.1,3.90299643]
[1750408788818,0.36332804,2562.3,2562.1,3.90299643]
[1750408789017,0.36334212,2562.3,2561.6,0.8]
[1750408789221,1.19053019,2562.2,2561.8,3.90347287]
[1750408789415,0.36335907,2562.1,2561.8,3.90347287]
[1750408789951,0.36361483,2562.1,2561.8,3.90347287]
[1750408790148,0.36361748,2562.1,2561.9,3.90334943]
[1750408790517,0.21819639,2562.1,2561.9,3.90334943]
[1750408790721,0.58185468,2562.1,2561.9,3.90334943]
[1750408791206,0.36365829,2562.0,2561.9,3.90334943]
[1750408791406,0.58190157,2562.1,2561.9,3.90334943]
[1750408791603,0.58190157,2562.1,2562.0,3.90320062]
[1750408791802,0.36365829,2562.1,2562.0,3.90320062]
[1750408792146,0.58189865,2562.2,2562.0,3.90320062]
[1750408792379,0.36365829,2562.1,2561.9,3.90327043]
[1750408792691,0.36368426,2562.1,2561.9,3.90327043]
[1750408793174,0.36368916,2562.1,2561.6,0.8]
[1750408793378,0.36359952,2562.1,2561.9,3.90328565]
[1750408793529,0.36359952,2562.1,2562.0,3.90320062]
[1750408793735,0.62088414,2562.2,2562.1,3.90304828]
[1750408793935,0.5818004,2562.2,2562.1,3.90304828]
[1750408794377,0.3635869,2562.2,2562.1,3.90304828]
[1750408795766,0.36342116,2562.2,2562.1,3.90304828]
[1750408796432,0.36341885,2562.2,2562.1,3.90304828]
[1750408796970,0.58146981,2562.3,2562.2,3.90289594]
[1750408797262,0.58145649,2562.3,2562.2,3.90289594]
[1750408797564,0.58145865,2562.3,2562.2,3.90289594]
[1750408797733,0.58158069,2562.3,2562.2,3.90289594]
[1750408798134,0.58165012,2562.3,2562.2,3.90289594]
[1750408798461,0.36353235,2562.3,2562.2,3.90289594]
[1750408798667,0.36352715,2562.3,2561.7,0.55]
[1750408798857,0.58164195,2562.4,2562.2,3.90289594]
[1750408799167,0.36352715,2562.3,2562.2,3.90289594]
[1750408801336,10.0,2562.5,2562.4,3.90259132]
[1750408801538,0.94578153,2562.5,2562.4,3.90259132]
[1750408802241,0.58208979,2562.5,2562.4,3.90245857]
[1750408802438,0.9849756,2562.5,2562.1,3.9029816]
[1750408802657,0.9849756,2562.5,2562.0,0.8248]
[1750408802658,0.94657351,2562.4,2562.3,3.90272783]
[1750408802852,0.58233413,2562.4,2562.3,3.90272783]
[1750408803062,0.94655391,2562.4,2562.3,3.90272783]
[1750408803267,0.94655391,2562.4,2562.2,3.9028262]
[1750408803574,0.09737112,2562.6,2562.3,3.90274362]
[1750408803775,0.36430979,2562.5,2562.3,3.90274362]
[1750408804076,0.72861892,2562.4,2562.3,3.90274362]
[1750408804242,0.94720288,2562.4,2562.3,3.90274362]
[1750408804443,0.58289408,2562.4,2562.3,3.90274362]
[1750408807182,0.95058948,2562.3,2562.2,3.90289594]
[1750408807549,0.95059732,2562.3,2562.2,3.90289594]
[1750408808157,0.95058737,2562.3,2562.2,3.90289594]
[1750408808351,0.95059648,2562.3,2562.2,3.90289594]
[1750408808570,0.95062332,2562.3,2562.2,3.90289594]
[1750408808756,0.95062332,2562.3,2561.8,0.817]
[1750408809081,6.53407112,2562.6,2562.1,3.90304828]
[1750408809082,0.95062332,2562.2,2562.1,3.90304828]
[1750408809243,0.95074755,2562.2,2562.0,3.90318386]
[1750408809439,0.95078298,2562.1,2562.0,3.90318386]
[1750408810342,0.95080207,2562.1,2562.0,3.90318386]
[1750408810544,0.95083629,2562.1,2562.0,3.90318386]
[1750408811018,0.85307112,2562.3,2562.1,3.90302318]
[1750408811280,0.95088518,2562.2,2562.1,3.90302318]
[1750408811668,0.95104818,2562.2,2562.1,3.90302318]
[1750408811976,0.95104469,2562.2,2562.1,3.90302318]
[1750408812306,0.95109383,2562.2,2562.1,3.90302318]
[1750408812603,0.95109122,2562.2,2562.1,3.90302318]
[1750408812762,0.95109122,2562.2,2561.5,0.76]
[1750408812763,0.95109122,2562.2,2561.9,3.90326865]
[1750408813087,0.99016234,2562.1,2561.8,3.90338804]
[1750408813243,0.95109122,2562.0,2561.9,3.90334973]
[1750408813580,0.95113183,2562.0,2561.9,3.90334973]
[1750408813770,1.732,2562.1,2562.0,3.90320062]
[1750408813973,2.68307984,2562.1,2562.0,3.90320062]
[1750408814155,0.95107984,2562.1,2562.0,3.90320062]
[1750408814476,0.73160008,2562.1,2562.0,3.90320062]
[1750408814689,0.58528022,2562.1,2562.0,3.90320062]
[1750408815098,0.58529433,2562.1,2562.0,3.90320062]
[1750408816498,1.34279433,2562.1,2561.9,3.90329434]
[1750408816797,0.62438659,2562.0,2561.9,3.90329434]
[1750408817158,0.62438659,2562.0,2561.8,3.90342921]
[1750408817359,6.84882217,2561.9,2561.2,0.7623]
[1750408817558,6.84882217,2561.9,2561.4,3.90405451]
[1750408817559,0.8158,2561.7,2561.4,3.90405451]
[1750408817895,0.62423966,2561.6,2561.4,3.90405451]
[1750408818057,0.36582217,2561.5,2561.4,3.90405451]
[1750408818898,0.95074721,2561.5,2561.4,3.90405451]
[1750408819610,2.58687112,2561.7,2561.5,3.90388538]
[1750408819762,2.58687112,2561.7,2561.4,3.90405451]
[1750408819763,2.58687112,2561.7,2561.6,3.90381011]
[1750408819967,3.49829991,2561.7,2561.6,3.90381011]
[1750408820191,3.49830092,2561.7,2561.6,3.90381011]
[1750408820387,3.49828331,2561.7,2561.5,3.90389008]
[1750408820593,0.95048331,2561.6,2561.4,3.90406065]
[1750408820769,2.5478,2561.7,2561.5,3.90396252]
[1750408820973,0.94972735,2561.6,2561.5,3.90396252]
[1750408821374,0.94972711,2561.6,2561.4,3.90405223]
[1750408821571,0.94972711,2561.5,2561.4,3.90405223]
[1750408821772,0.94972711,2561.5,2560.8,0.7915]
[1750408822096,0.0572,2561.6,2560.8,0.7915]
[1750408822097,12.2112603,2561.4,2561.0,3.90471174]
[1750408822258,12.2112603,2561.4,2560.7,3.90509211]
[1750408822259,4.77891648,2561.2,2560.7,3.90509211]
[1750408822467,2.68280653,2561.1,2560.7,3.90509211]
[1750408822661,0.98887765,2561.0,2560.6,3.90532554]
[1750408822862,0.94980653,2560.9,2560.5,3.90534367]
[1750408823060,10.42679878,2561.0,2560.3,3.90572488]
[1750408823061,5.71119475,2560.8,2560.3,3.90570972]
[1750408823303,0.94988976,2560.7,2560.3,3.90570972]
[1750408823468,0.98897001,2560.6,2560.3,3.90570972]
[1750408823664,0.94997159,2560.5,2560.2,3.90587927]
[1750408823863,0.98908636,2560.4,2560.2,3.90582996]
[1750408824202,0.36536298,2560.3,2560.2,3.90594484]
[1750408825181,0.03907112,2560.4,2560.3,3.90579228]
[1750408825379,0.40305493,2560.4,2560.2,3.90585939]
[1750408825580,0.40305493,2560.4,2560.3,3.90579228]
[1750408826024,0.36398381,2560.4,2560.3,3.90579228]
[1750408826176,1.733,2560.5,2560.4,3.90563974]
[1750408826370,2.09698381,2560.5,2560.4,3.90563974]
[1750408826571,0.36398381,2560.5,2560.4,3.90563974]
[1750408826769,1.75507112,2560.6,2560.4,3.90563974]
[1750408827071,0.36398381,2560.5,2560.4,3.90563974]
[1750408827282,0.36398381,2560.5,2560.3,3.90571076]
[1750408827901,0.36398381,2560.5,2560.4,3.90563974]
[1750408828107,0.36325235,2560.5,2560.4,3.90563974]
[1750408828473,1.716,2560.6,2560.5,3.9054872]
[1750408828673,2.07893165,2560.6,2560.5,3.9054872]
[1750408828995,2.07893304,2560.6,2560.5,3.9054872]
[1750408829919,2.07893304,2560.6,2560.5,3.9180872]
[1750408830141,1.716,2560.6,2560.5,0.0126]
[1750408830279,2.07892623,2560.6,2560.5,3.9054872]
[1750408830927,8.201,2560.7,2560.6,3.90533468]
[1750408831084,18.5637732,2560.7,2560.6,3.90533468]
[1750408831578,12.07877234,2560.7,2560.6,3.90533468]
[1750408833019,12.07875645,2560.7,2560.3,0.0126]
[1750408833322,0.4018259,2560.6,2560.2,0.0126]
[1750408833536,0.4018259,2560.6,2560.3,3.9056857]
[1750408833722,0.4018259,2560.6,2560.4,3.90563493]
[1750408834022,0.40180555,2560.6,2560.4,3.90563493]
[1750408834221,0.36268212,2560.6,2560.4,3.90563493]
[1750408835485,0.36272236,2560.6,2560.4,3.90563493]
[1750408836290,0.36272455,2560.6,2560.5,3.9054872]
[1750408836691,0.36272074,2560.6,2560.4,3.90556818]
[1750408837207,0.36273065,2560.6,2560.4,3.90556818]
[1750408837426,0.03907112,2560.5,2560.3,3.9057322]
[1750408838310,0.03907112,2560.5,2560.4,3.90563974]
[1750408839048,0.40200717,2560.6,2560.4,3.90563974]
[1750408839249,0.40200586,2560.6,2560.3,3.90570872]
[1750408839648,0.40200942,2560.6,2560.3,3.90570872]
[1750408839855,0.40221705,2560.6,2560.3,3.91830872]
[1750408840036,0.40221751,2560.6,2560.3,3.91830872]
[1750408840343,0.03907112,2560.6,2560.3,3.91830872]
[1750408840560,6.485,2560.5,2560.4,3.90563974]
[1750408840850,6.8481325,2560.5,2560.4,3.91823974]
[1750408841805,0.36321717,2560.5,2560.4,3.91823974]
[1750408842010,10.0,2560.7,2560.4,3.91823974]
[1750408842011,0.36321717,2560.6,2560.5,3.9180872]
[1750408842471,10.0,2560.7,2560.6,3.90533468]
[1750408842762,10.36317853,2560.7,2560.6,3.91793468]
[1750408842963,10.36353613,2560.7,2560.6,3.91793468]
[1750408843315,10.36354394,2560.7,2560.6,3.91793468]
[1750408843570,10.36354394,2560.7,2560.6,0.0126]
[1750408843723,10.36367201,2560.7,2560.6,0.0126]
[1750408843926,10.36367201,2560.7,2560.6,3.91793468]
[1750408844244,10.36367115,2560.7,2560.6,3.91793468]
[1750408844429,10.36367115,2560.7,2560.6,0.0126]
[1750408844630,10.36367115,2560.7,2560.6,3.91793468]
[1750408844871,10.36366652,2560.7,2560.6,3.91793468]
[1750408845048,0.36366652,2560.7,2560.6,3.91793468]
[1750408845262,6.485,2561.0,2560.9,3.90487719]
[1750408845416,7.43186178,2561.0,2560.8,3.90494683]
[1750408845618,0.94695181,2560.9,2560.8,3.90494683]
[1750408846263,0.58277259,2560.9,2560.8,3.90494683]
[1750408846469,0.36426095,2560.9,2560.8,3.90494683]
[1750408846816,0.72852058,2560.9,2560.8,3.90494683]
[1750408847168,0.94707708,2560.9,2560.8,3.90494683]
[1750408847585,0.94707708,2560.9,2560.4,3.90561701]
[1750408847586,0.94707708,2560.9,2560.4,0.8305]
[1750408847722,0.9861482,2560.8,2560.4,0.8305]
[1750408847918,0.58281518,2560.7,2560.5,3.90534108]
[1750408848276,0.03907112,2560.9,2560.6,3.90533468]
[1750408848470,0.36485923,2560.8,2560.5,3.90541393]
[1750408848773,0.36485923,2560.7,2560.5,3.90540015]
[1750408848975,0.21891554,2560.7,2560.6,3.90533468]
[1750408849274,0.58375731,2560.7,2560.6,3.90533468]
[1750408850569,0.58375833,2560.7,2560.6,3.90533468]
[1750408850782,0.98846809,2560.7,2560.4,3.91817416]
[1750408850938,1.73991355,2560.6,2560.2,3.91846192]
[1750408851275,7.47383621,2560.5,2560.0,0.0126]
[1750408851578,10.95076509,2560.4,2559.8,0.7692]
[1750408851778,3.90616464,2560.1,2559.7,0.0126]
[1750408852072,0.9900783,2560.0,2559.9,3.90640259]
[1750408852237,0.95100718,2560.0,2559.9,3.90640259]
[1750408852438,0.9900783,2560.0,2559.8,3.90647964]
[1750408852635,0.9900783,2560.0,2559.9,3.90640259]
[1750408852636,0.03907112,2560.0,2559.9,3.90640259]
[1750408852863,0.95102667,2560.0,2559.9,3.91900259]
[1750408853177,0.95100951,2560.0,2559.9,3.90640259]
[1750408853322,0.95100059,2560.0,2559.8,3.90647268]
[1750408853527,0.95102206,2559.9,2559.8,3.90647268]
[1750408853742,0.82827112,2560.1,2559.9,3.90635369]
[1750408853959,0.58484155,2560.0,2559.8,3.90648453]
[1750408854175,0.58484155,2559.9,2559.8,3.90655519]
[1750408854566,0.36552523,2559.9,2559.8,3.90655519]
[1750408854931,0.03907112,2560.1,2560.0,3.90625]
[1750408855130,0.5847515,2560.1,2559.9,3.90640259]
[1750408855332,8.2,2560.2,2560.0,3.90625]
[1750408855530,8.2,2560.2,2560.1,3.90609741]
[1750408855731,8.78456059,2560.2,2560.1,3.90609741]
[1750408856635,8.78456966,2560.2,2560.1,3.90609741]
[1750408856835,8.78456911,2560.2,2560.1,3.90609741]
[1750408857551,8.78455923,2560.2,2560.1,3.90609741]
[1750408858283,8.78452823,2560.2,2560.1,3.90609741]
[1750408858585,8.78449544,2560.2,2560.1,3.90609741]
[1750408858890,0.58449544,2560.2,2560.1,3.90609741]
[1750408859036,7.06949544,2560.2,2560.1,3.90609741]
[1750408859570,0.58439282,2560.2,2560.1,3.90609741]
[1750408859766,0.58439282,2560.2,2560.1,4.76889213]
[1750408860285,0.36523867,2560.2,2560.1,4.80795162]
[1750408860455,0.36523859,2560.2,2560.1,4.76889213]
[1750408860652,0.36523859,2560.2,2560.1,5.3579489]
[1750408860853,0.36523859,2560.2,2560.1,5.58639213]
[1750408861056,0.36523859,2560.2,2560.1,3.90609741]
[1750408861554,0.36520137,2560.2,2559.9,0.8175]
[1750408861898,1.20387249,2560.1,2559.8,3.9064794]
[1750408862059,0.5843401,2560.0,2559.8,3.9064794]
[1750408862256,0.36520137,2559.9,2559.8,3.9064794]
[1750408862587,0.36520137,2559.9,2559.8,4.76743815]
[1750408863776,0.36520137,2559.9,2559.8,6.15280141]
[1750408863974,0.58434245,2560.6,2560.5,3.9054872]
[1750408864175,0.5842848,2560.6,2560.4,3.90556601]
[1750408864480,0.58428487,2560.5,2560.2,3.90586509]
[1750408864669,0.2191299,2560.5,2560.4,3.90563974]
[1750408864866,11.715,2560.7,2560.5,3.90547649]
[1750408865067,0.5842472,2560.6,2560.5,3.90547649]
[1750408865376,0.58424718,2560.6,2560.4,3.90555852]
[1750408865671,0.58424718,2560.5,2560.4,3.90555852]
[1750408866078,0.58428046,2560.5,2560.4,3.90555852]
[1750408866379,0.58428046,2560.5,2560.1,0.0126]
[1750408866552,0.62335744,2560.4,2560.2,3.90586252]
[1750408866755,0.36515448,2560.3,2560.2,3.90594484]
[1750408866946,0.36515448,2560.3,2559.8,1.65725875]
[1750408866947,0.36515448,2560.3,2560.1,3.90603072]
[1750408867141,0.36515448,2560.2,2560.1,3.90603072]
[1750408867347,0.58428632,2560.2,2560.1,3.90603072]
[1750408867573,0.58426674,2560.2,2560.1,3.90603072]
[1750408867779,1.715,2560.3,2560.1,3.90603072]
[1750408868257,0.58429969,2560.2,2560.1,3.90603072]
[1750408868463,0.58429969,2560.2,2560.0,3.90617281]
[1750408868670,0.62337178,2560.1,2560.0,3.90617281]
[1750408868996,0.40420951,2560.1,2559.8,4.76746682]
[1750408869159,0.03907112,2560.1,2560.0,3.90625]
[1750408869366,0.40424277,2560.1,2560.0,3.90625]
[1750408870242,0.36517165,2560.1,2560.0,3.90625]
[1750408870447,0.36517165,2560.1,2560.0,4.67485]
[1750408871686,2.33827485,2560.2,2560.1,3.90609741]
[1750408871980,2.33823858,2560.2,2560.1,3.90609741]
[1750408873644,2.33829828,2560.2,2560.1,3.90609741]
[1750408873974,2.29922716,2560.2,2560.1,3.90609741]
[1750408874175,2.299204,2560.2,2560.1,3.90609741]
[1750408874482,2.29919572,2560.2,2560.1,3.90609741]
[1750408874976,2.33826684,2560.2,2560.1,3.90609741]
[1750408875342,3.12410451,2560.2,2560.0,3.90616617]
[1750408875681,0.21910874,2560.1,2559.9,3.90633062]
[1750408875977,0.40449169,2560.0,2559.9,3.90633062]
[1750408876381,0.03907112,2560.0,2559.9,3.90633062]
[1750408876583,0.36542598,2560.0,2559.9,3.90633062]
[1750408876747,0.58468157,2560.0,2559.9,3.90633062]
[1750408876950,0.64509167,2560.0,2559.5,3.90694471]
[1750408877149,0.8091,2559.8,2559.7,3.90664157]
[1750408877452,1.39380636,2559.8,2559.7,3.90664157]
[1750408877653,0.58466157,2559.8,2559.7,3.90664157]
[1750408877848,8.198,2559.9,2559.8,3.90655519]
[1750408878180,8.78300141,2559.9,2559.8,3.90655519]
[1750408878883,8.84340141,2559.9,2559.4,0.38124083]
[1750408879182,0.778,2560.0,2559.8,3.90655519]
[1750408879512,8.7839996,2559.9,2559.8,3.90655519]